Cogmind - Beta 16 @@@ ROGUE MODE // 2026.01.11 @ 21:56:09 Player: phosphophyllite Result: Destroyed by G-34 Mercenary with Small Laser Performance ------------- Evolutions (1) 500 Regions Visited (3) 600 Robots Destroyed (24) 120 Value Destroyed (348) 348 Prototype IDs (0) 0 Alien Tech Used (0) 0 Bonus (0) 0 TOTAL SCORE: 1568 Bonus ------- None Cogmind --------- Core Integrity 0/400 Matter 238/300 Energy 99/100 System Corruption 0% Temperature Cool (6) Movement Core (200) Ox3 Location -9/Mines Parts ------- > --- POWER (1) -------- (None) > --- PROPULSION (3) --- (None) > --- UTILITY (2) ------ Medium Storage Unit Salvage Targeting Computer > --- WEAPON (3) ------- (None) > --- INVENTORY (10) --- Large Storage Unit Huge Storage Unit Visual Processing Unit Improved Terrain Scanner Salvage Targeting Computer Medium Armor Plating Peak State ------------ > --- POWER ------------ Ion Engine > --- PROPULSION ------- Aluminum Leg Aluminum Leg Aluminum Leg > --- UTILITY ---------- Medium Storage Unit Improved Terrain Scanner > --- WEAPON ----------- Autogun Autogun Autogun > --- INVENTORY -------- Huge Storage Unit Visual Processing Unit Salvage Targeting Computer Salvage Targeting Computer Medium Armor Plating Medium Armor Plating Medium Armor Plating Autogun [Rating: 15] Favorites ----------- Power Ion Engine Engine Ion Engine Propulsion Aluminum Leg Leg Aluminum Leg Utility Medium Storage Unit Device Improved Terrain Scanner Storage Medium Storage Unit Processor Salvage Targeting Computer Protection Medium Armor Plating Weapon Autogun Ballistic Gun Autogun Launcher Grenade Launcher Build | -11 -10 -9 -9 ------- Run | Yrd Mat Mat Min Slots Evolved 2 | . . 2 . Power . | . . . . Propulsion 1 | . . 1 . Utility . | . . . . Weapon 1 | . . 1 . Parts Attached 22 | 7 5 8 2 Power 2 | 1 . 1 . Engine 2 | 1 . 1 . Core . | . . . . Reactor . | . . . . Propulsion 5 | 2 . 3 . Treads . | . . . . Leg 5 | 2 . 3 . Wheel . | . . . . Hover . | . . . . Flight . | . . . . Utility 7 | 2 2 3 . Device 1 | 1 . . . Storage 3 | 1 1 1 . Processor 1 | . . 1 . Hackware . | . . . . Protection 2 | . 1 1 . Artifact . | . . . . Weapon 8 | 2 3 1 2 Energy Gun . | . . . . Energy Cannon . | . . . . Ballistic Gun 7 | 2 2 1 2 Ballistic Cannon . | . . . . Launcher 1 | . 1 . . Special Weapon . | . . . . Impact Weapon . | . . . . Slashing Weapon . | . . . . Piercing Weapon . | . . . . Special Melee Weapon . | . . . . Unidentified Prototypes . | . . . . Parts Lost 12 | . . 2 10 Power 2 | . . 1 1 Propulsion 5 | . . 1 4 Utility . | . . . . Weapon 5 | . . . 5 Highest Loss Streak 10 | . . 2 10 To Critical Strikes . | . . . . Average Backups 8 | 6 8 9 7 Power 1 | 1 1 . . Propulsion 1 | 3 1 . . Utility 4 | . 3 7 6 Weapon 1 | 1 1 1 1 Tool/Special . | . . . . Unused Backups 11 | . 7 2 2 Power 1 | . 1 . . Propulsion 4 | . 4 . . Utility 4 | . . 2 2 Weapon 2 | . 2 . . Tool/Special . | . . . . Average Slot Usage (%) 92 | . 94 98 56 Engine 11 | . 14 11 2 Leg 28 | . 28 32 13 Device 3 | . 6 . . Storage 12 | . 14 11 11 Processor 5 | . . 10 11 Protection 1 | . 2 . . Ballistic Gun 28 | . 27 32 17 Peak Build Rating 15 | 9 11 15 14 Average Rating 10 | 6 9 13 8 On Entrance 8 | . 9 10 14 Avg Prop Armor Cover (%) . | . . . . Naked Turns . | . . . . Heaviest Build 31 | 13 31 24 22 Greatest Support 30 | 20 20 30 30 Greatest Overweight (x) 4 | . 1 1 4 Average Overweight (x) . | . . . 1 Largest Inventory Capacity 15 | 8 15 15 10 Average Capacity 9 | 7 10 10 10 Most Carried 13 | 8 13 12 9 Average Carried 8 | 6 8 9 7 Final Capacity 15 | 8 15 10 10 Final Carried 13 | 8 13 9 6 Class Distribution -------------------- 60% | Mutant 39% | Gunner Dominant Class ---------------- Mutant | -10/Materials Gunner | -9/Materials Gunner | -9/Mines Resources | -11 -10 -9 -9 ----------- Run | Yrd Mat Mat Min Matter Collected 921 | 300 10 558 53 Remotely . | . . . . Salvage Created 909 | 124 138 647 . Parts 58 | 8 8 42 . Haulers Intercepted . | . . . . Recyclers Shooed 4 | . 2 2 . Parts Field Recycled . | . . . . Retrieved Matter . | . . . . Parts Self-Destructed . | . . . . Prevented . | . . . . Parts Restored . | . . . . Kills | -11 -10 -9 -9 ------- Run | Yrd Mat Mat Min Combat Hostiles Destroyed 11 | . 2 9 . Guns 9 | . . 9 . AOE 2 | . 2 . . Classes Destroyed 7 | 2 2 3 . Builder 3 | . . 3 . Tunneler 2 | 2 . . . Recycler 6 | 1 1 4 . Watcher 2 | . 1 1 . Swarmer 6 | . . 6 . Grunt 4 | . 2 2 . Sentry 1 | . . 1 . Best Kill Streak 7 | 3 3 7 . Combat Bots Only 3 | . 2 3 . Max Kills in Single Turn 2 | 1 1 2 . Gunslinging 1 | . . 1 . Exploded 1 | . 1 . . Melee . | . . . . Uniques/NPCs Destroyed . | . . . . Combat | -11 -10 -9 -9 -------- Run | Yrd Mat Mat Min Hostile Shots Fired 137 | . 5 54 78 Missed 33 | . 2 16 15 Hits 104 | . 3 38 63 Melee 14 | . . . 14 Projectile 90 | . 3 38 49 AOE 1 | . . 1 . Critical Strikes 5 | . . . 5 Damage Taken 1506 | . 33 481 992 Core 415 | . 12 58 345 Absorbed by Shields . | . . . . Core Remaining (%) 97 | 100 95 . . Volleys Fired 69 | 15 11 34 9 Largest 3 | 2 2 3 3 Hottest 69 | 40 40 69 69 Shots Fired 170 | 30 19 102 19 Gun 167 | 30 16 102 19 Cannon . | . . . . Launcher 3 | . 3 . . Special . | . . . . Kinetic 167 | 30 16 102 19 Thermal . | . . . . Explosive 3 | . 3 . . Electromagnetic . | . . . . Robot Hit Streak 10 | 3 3 10 5 Robot Miss Streak 7 | 3 3 7 3 Penetration Max . | . . . . Secondary Targets 4 | . . 4 . Max Gunslinging Chain 1 | . . 1 . Shots Hit Robots 82 | 12 10 48 12 Core Hits 38 | 6 9 20 3 Critical Kills . | . . . . Critical Parts Destroyed . | . . . . Critical Strikes . | . . . . Melee Attacks . | . . . . Impact . | . . . . Slashing . | . . . . Piercing . | . . . . Sneak Attacks . | . . . . Combat Hostiles . | . . . . Follow-up Attacks . | . . . . Damage Inflicted 1464 | 103 345 818 198 Guns 1170 | 103 55 818 194 Cannons . | . . . . Explosions 290 | . 290 . . Melee . | . . . . Ramming 4 | . . . 4 Kinetic 1170 | 103 55 818 194 Thermal . | . . . . Explosive 290 | . 290 . . Electromagnetic . | . . . . Impact . | . . . . Slashing . | . . . . Piercing . | . . . . Highest Corruption . | . . . . Average Corruption . | . . . . Corruption Purged . | . . . . Corruption Blocked . | . . . . Overload Shots . | . . . . Overflow Damage 13 | . 13 . . Projectiles . | . . . . Explosions 13 | . 13 . . Melee . | . . . . Knockbacks . | . . . . Impact . | . . . . Kinetic . | . . . . Secondary . | . . . . Self-Inflicted Damage 1 | . . . 1 Shots . | . . . . Rammed 5 | . . . 5 Targets Rammed 5 | . . . 5 Kicked . | . . . . Crushed . | . . . . Highest Temperature 69 | . 10 69 24 Average Temperature 22 | . 6 24 10 Received Heat Transfer 375 | . 18 63 294 Siege Activations . | . . . . Martial Activations . | . . . . Shielding Activations . | . . . . Robots Disrupted . | . . . . Combat Hostiles . | . . . . Robots Corrupted . | . . . . Combat Hostiles . | . . . . Parts Fried . | . . . . Impact Corruptions . | . . . . Robots Melted . | . . . . Combat Hostiles . | . . . . Parts Melted . | . . . . Heat Transferred . | . . . . Parts Sabotaged . | . . . . Parts Stolen . | . . . . Parts Stripped . | . . . . Power Chain Reactions . | . . . . Alert | -11 -10 -9 -9 ------- Run | Yrd Mat Mat Min Maximum Alert Level . | . . . . Low Security (%) 100 | 100 100 100 100 Level 1 . | . . . . Level 2 . | . . . . Level 3 . | . . . . Level 4 . | . . . . Level 5 . | . . . . High Security . | . . . . Max Security . | . . . . Peak Influence 92 | 5 68 92 46 Initial 31 | . . . 31 Average 22 | . 11 46 9 Influence Increases 367 | 15 75 262 15 Destroy 0b10 Robot/C 220 | . 40 180 . Destroy 0b10 Robot/NC 65 | 15 10 40 . Destroy Leader 54 | . 12 42 . Disable Machine 15 | . . . 15 Destroy Structure 13 | . 13 . . Influence Decreases 367 | 15 75 180 97 Entered New Map 51 | . . . 51 Time Decay 260 | 15 75 160 10 Lost Part 56 | . . 20 36 Squads Dispatched 2 | . 1 1 . Investigation 2 | . 1 1 . Extermination . | . . . . Reinforcement . | . . . . Assault . | . . . . Garrison . | . . . . Intercept . | . . . . Searches Triggered . | . . . . Construction Impeded . | . . . . Haulers Reinforced . | . . . . Active Scanning Responses . | . . . . Cargo Convoy Interrupts . | . . . . Stealth | -11 -10 -9 -9 --------- Run | Yrd Mat Mat Min Distress Signals 2 | . 1 1 . Communications Jammed . | . . . . Distress Signals . | . . . . Times Spotted 26 | . 4 19 3 Peak Tracking Total 6 | . 3 6 3 Tactical Retreats . | . . . . Traps | -11 -10 -9 -9 ------- Run | Yrd Mat Mat Min Traps Triggered 2 | . 1 1 . Indirectly . | . . . . Trap Hack Attempts . | . . . . Triggered . | . . . . Disarmed . | . . . . Reprogrammed . | . . . . Reused . | . . . . Traps Extracted . | . . . . Installed . | . . . . Triggered . | . . . . Machines | -11 -10 -9 -9 ---------- Run | Yrd Mat Mat Min Machines Disabled 1 | . . . 1 Max in Single Turn 1 | . . . 1 Machines Repaired . | . . . . Machines Dismantled . | . . . . Machines Sabotaged . | . . . . Overloaded Fab Kills . | . . . . Hacking | -11 -10 -9 -9 --------- Run | Yrd Mat Mat Min Machines Accessed 1 | . 1 . . Terminals 1 | . 1 . . Fabricators . | . . . . Repair Stations . | . . . . Recycling Units . | . . . . Scanalyzers . | . . . . Garrison Access . | . . . . Total Hacks 2 | . 2 . . Successful . | . . . . Failed 2 | . 2 . . Catastrophic . | . . . . Database Lockouts . | . . . . Manual 2 | . 2 . . Terminals 2 | . 2 . . Fabricators . | . . . . Repair Stations . | . . . . Recycling Units . | . . . . Scanalyzers . | . . . . Garrison Access . | . . . . Terminal Hacks . | . . . . Fabricator Hacks . | . . . . Repair Station Hacks . | . . . . Recycling Unit Hacks . | . . . . Scanalyzer . | . . . . Garrison Access Hacks . | . . . . Unauthorized Hacks . | . . . . Terminals . | . . . . Fabricators . | . . . . Repair Stations . | . . . . Recycling Units . | . . . . Scanalyzers . | . . . . Garrison Access . | . . . . Data Cores Recovered . | . . . . Used . | . . . . Hacking Detections 1 | . 1 . . Full Trace Events 1 | . 1 . . Feedback Events . | . . . . Feedback Blocked . | . . . . Robot Schematics Acquired . | . . . . Robots Built . | . . . . Authchips . | . . . . Time . | . . . . Total Robot Build Rating . | . . . . Part Schematics Acquired . | . . . . Parts Built . | . . . . Authchips . | . . . . Time . | . . . . Total Part Build Rating . | . . . . Part Studies Acquired . | . . . . Parts Repaired . | . . . . Time . | . . . . Parts Recycled . | . . . . Recycled Matter . | . . . . Retrieved Matter . | . . . . Retrieved Components . | . . . . Parts Scanalyzed . | . . . . Part Schematics Acquired . | . . . . Parts Damaged . | . . . . Bothacking | -11 -10 -9 -9 ------------ Run | Yrd Mat Mat Min Used RIF Installer . | . . . . Robots Hacked . | . . . . Non-combat . | . . . . Combat . | . . . . Robot Hacks Applied . | . . . . Relay Couplers Released . | . . . . Fabnet Peak Effective % . | . . . . Robots Rewired . | . . . . Allies Hacked . | . . . . Hacks Repelled . | . . . . Allies | -11 -10 -9 -9 -------- Run | Yrd Mat Mat Min Total Allies . | . . . . Largest Group . | . . . . Highest-Rated Group . | . . . . Highest-Rated Ally . | . . . . Total Orders . | . . . . Ally Attacks . | . . . . Total Damage . | . . . . Kills . | . . . . Allies Corrupted . | . . . . Allies Melted . | . . . . Intel | -11 -10 -9 -9 ------- Run | Yrd Mat Mat Min Active Infowar (turns) 233 | 53 179 1 . Terrain 233 | 53 179 1 . Robot Analysis Total . | . . . . Derelict Logs Recovered . | . . . . Drone Launches . | . . . . Drone Recoveries . | . . . . Exploration | -11 -10 -9 -9 ------------- Run | Yrd Mat Mat Min Turns Passed 980 | 166 387 355 72 Spaces Moved 507 | 96 216 180 15 Core 23 | 16 . . 7 Treads . | . . . . Legs 484 | 80 216 180 8 Wheels . | . . . . Hover . | . . . . Flight . | . . . . Fastest Speed 50 | 50 120 120 120 Average Speed 133 | 108 152 120 174 Slowest Speed 250 | 120 190 190 250 Overloaded Moves . | . . . . Propulsion Burnouts . | . . . . Robots Hopped . | . . . . Potential Cave-ins . | . . . . Cave-ins Triggered . | . . . . Exploration Rate (%) 13 | 5 26 15 8 Regions Visited 3 Branch Regions 1 Pre-discovered Areas . | . . . . Known Exits Taken . | . . . . Unknown Exits Taken 3 | 1 1 1 . Scrap Searched . | . . . . Spaces Dug . | . . . . Terrain Destroyed 14 | . 14 . . Melee . | . . . . Projectile . | . . . . AOE 14 | . 14 . . Terrain Rammed . | . . . . Walls Destroyed . | . . . . Machines Disabled . | . . . . Actions | -11 -10 -9 -9 --------- Run | Yrd Mat Mat Min Total 710 | 134 268 265 43 Wait 34 | . . 31 3 Move 504 | 95 215 179 15 Hop . | . . . . Pick Up 44 | 16 19 6 3 Fast Attach . | . . . . Attach 28 | 7 6 9 6 Detach 4 | . 2 2 . Swap 2 | . . . 2 Drop 20 | 1 15 4 . Fire 69 | 15 11 34 9 Melee . | . . . . Ram 5 | . . . 5 Kick . | . . . . Crush . | . . . . Escape Stasis . | . . . . Rewire . | . . . . Trap . | . . . . Miscellaneous . | . . . . Route ------- -11/Scrapyard -10/Materials -9/Materials -9/Mines History --------- Turn | Location | Event 8 | -11/Scrapyard | Discovered new exit (range 16) 167 | -11/Scrapyard | Entered Materials 307 | -10/Materials | Build established: Mutant 402 | -10/Materials | Discovered new exit (range 11) 554 | -10/Materials | Entered another Materials area 554 | -9/Materials | Evolved 2 slots: Propulsion x1, Weapon x1 798 | -9/Materials | Discovered new exit (range 14) 851 | -9/Materials | Build established: Gunner 909 | -9/Materials | Entered Mines 959 | -9/Mines | Core integrity fell below 50% 973 | -9/Mines | Core integrity fell below 20% 981 | -9/Mines | Destroyed by G-34 Mercenary with Small Laser Last Messages --------------- 00930_ Aluminum Leg destroyed. 00937_ Aluminum Leg severed. 00941_ Acquired Aluminum Leg. 00942_ Hvy. Assault Rifle severed. 00944_ Aluminum Leg destroyed. 00944_ Acquired Autogun. 00948_ Autogun destroyed. 00949_ Aluminum Leg destroyed. 00950_ Acquired Hvy. Assault Rifle. 00952_ Autogun destroyed. 00954_ L-31 Rogue destroyed. 00955_ Acquired 53 matter. 00956_ Autogun destroyed. 00958_ Slammed into G-34 Mercenary. 00958_ Destabilizing: Core damaged (-12). 00960_ Slammed into G-34 Mercenary. 00970_ Hvy. Assault Rifle destroyed. 00974_ R-06 Scavenger collects Katana. 00976_ R-06 Scavenger collects Imp. Aluminum Leg. Map ----- +----------------------------------------------------+ | ?????????????????????????????????????????????????? | | ?????????????????????????????????????????????????? | | ?????????????????????????????????????????????????? | | ?????????????????????????????????????????????????? | | ?????????????????????????????????????????????????? | | ?????????????????????????????????????????????????? | | ?????????????????????????????????????????????????? | | ?????????????????????????????????????????????????? | | ?????????????????????????????????????????????????? | | ?????????????????????????????????????????????????? | | ?????????????????????????????????????????????????? | | ?????????????????????????????????????????????????? | | ?????????????????????????????????????????????????? | | ????????????????????????????? ???????????????????? | | ????????????????????????????? #??????????????????? | | ????????????????????????????? ??????????????????? | | ????????????????????????????? #??????????????????? | | ????????????????????????????? #??????????????????? | | ????????????????????????????? #??????????????????? | | ????????????????????????????? #??????????????????? | | ????????????????????????##### #####??????????????? | | ????????????????????????# ??????????????? | | ????????????????????????# ?????????????? | | ????????????????????????# """ """ ????????????? | | ????????????????????????# """ """ #???????????? | | ????????????????????????#@ r """ """ #???????????? | | ????????????????????????# t #???????????? | | ????????????????????????# r""" """ #???????????? | | ????????????????????????#g """ """ #???????????? | | ????????????????????????# g""t""" #???????????? | | ????????????????????????# #???????????? | | ????????????????????????# #???????????? | | ????????????????????????# #???????????? | | ????????????????????????# #???????????? | | ????????????????????????# #???????????? | | ????????????????????????##############???????????? | | ?????????????????????????????????????????????????? | | ?????????????????????????????????????????????????? | | ?????????????????????????????????????????????????? | | ?????????????????????????????????????????????????? | | ?????????????????????????????????????????????????? | | ?????????????????????????????????????????????????? | | ?????????????????????????????????????????????????? | | ?????????????????????????????????????????????????? | | ?????????????????????????????????????????????????? | | ?????????????????????????????????????????????????? | | ?????????????????????????????????????????????????? | | ?????????????????????????????????????????????????? | | ?????????????????????????????????????????????????? | | ?????????????????????????????????????????????????? | +----------------------------------------------------+ Best States ------------- Heat Dissipation 28 Energy Generation 10 Energy Capacity 250 Matter Stores 300 Matter Capacity 300 Sight Range 16 Terrain Scan Range 16 Terrain Scan Density 10 Armor Coverage 225 Evasion (%) 55 Salvage Targeting 1 Item Schematics ----------------- None Robot Schematics ------------------ None Fabricated ------------ Nothing Repaired ---------- Nothing Studied --------- None Alien Tech Used ----------------- None Achievements -------------- None Challenges ------------ None Game ------ Seed BattlePoweredProjector Manual? 0 Play Time 00:30:24 Cumulative 2.0 hours Start 2026.01.11 @ 21:12:56 End 2026.01.11 @ 21:56:09 Sessions 1 Manual Loads 0 Difficulty Rogue Special Mode None Game No. 3 Rogue 3 Adventurer 0 Explorer 0 Win Type - Total 0 Types 0/0/0/0/0/0/0/0/0/0 Lore% 0 Gallery% 3 Achievement% 2 Wizard Run 0 Options --------- Layout 1 ASCII 0 Keyboard 0 Movement Numpad Keybinds 0 Fullscreen 2 Font 24/Smallcaps Map View 50x35 Zoom Use 0% Tactical HUD 1 Map Filters NONE Filters NONE Steam 1 RUN: 4ad206cd-f052-4e9e-ae0f-12d7bdc0df0f